bitfinex-derivatives/quotes_BTCF0:USTF0_20240820
["timestamp","ask_amount","ask_price","bid_price","bid_amount"]
[1724160835010,0.3608,60457.0,60443.0,0.06562808]
[1724160835305,0.3608,60457.0,60440.0,0.066154]
[1724160835306,0.3608,60447.0,60440.0,0.066154]
[1724160835603,0.06632038,60446.0,60441.0,0.066153]
[1724160836501,0.066148,60446.0,60441.0,0.066153]
[1724160836706,0.3608,60447.0,60441.0,0.066153]
[1724160837303,0.066148,60446.0,60441.0,0.066153]
[1724160837705,0.067148,60446.0,60441.0,0.066153]
[1724160838513,0.066148,60446.0,60441.0,0.066153]
[1724160838897,3.77,60445.0,60441.0,0.066153]
[1724160839895,3.77,60445.0,60435.0,0.06562808]
[1724160840100,3.77,60445.0,60443.0,0.3608]
[1724160840304,0.001,60446.0,60445.0,0.066149]
[1724160840516,0.00024816,60450.0,60445.0,0.15]
[1724160840703,0.00024816,60450.0,60445.0,0.64628]
[1724160841105,0.00024816,60450.0,60449.0,0.066145]
[1724160841308,3.77024816,60450.0,60449.0,0.066145]
[1724160841507,3.77024816,60450.0,60449.0,0.562425]
[1724160841709,3.77124816,60450.0,60449.0,0.066145]
[1724160841907,3.77124816,60450.0,60449.0,0.562425]
[1724160842211,3.77124816,60450.0,60449.0,0.962425]
[1724160842212,3.77224816,60450.0,60449.0,0.962425]
[1724160842398,3.77224816,60450.0,60449.0,0.562425]
[1724160842605,3.77224816,60450.0,60449.0,0.612225]
[1724160842907,0.426928,60464.0,60458.0,0.066134]
[1724160843111,0.426928,60464.0,60454.0,0.3608]
[1724160843112,0.3608,60464.0,60454.0,0.3608]
[1724160843308,0.3608,60464.0,60454.0,0.5308]
[1724160843503,3.77,60463.0,60455.0,0.06544618]
[1724160843705,3.77,60463.0,60455.0,0.17]
[1724160844015,3.77,60463.0,60457.0,0.066135]
[1724160844214,3.83613,60463.0,60458.0,0.067135]
[1724160844517,3.77,60463.0,60462.0,0.06613]
[1724160844814,3.771,60463.0,60462.0,0.06613]
[1724160844998,3.771,60463.0,60462.0,1.17773618]
[1724160845212,3.771,60463.0,60462.0,1.11229]
[1724160845400,3.771,60463.0,60462.0,1.3202459]
[1724160845617,3.772,60463.0,60462.0,1.32017294]
[1724160845812,3.772,60463.0,60462.0,1.19425581]
[1724160846206,3.772,60463.0,60462.0,1.11229]
[1724160846401,3.772,60463.0,60462.0,1.19425581]
[1724160846615,3.772,60463.0,60462.0,1.23820902]
[1724160847210,3.772,60463.0,60462.0,1.25020902]
[1724160847511,3.772,60463.0,60462.0,1.25220902]
[1724160847818,3.772,60463.0,60462.0,1.33424647]
[1724160848109,3.772,60463.0,60462.0,1.25220994]
[1724160850611,3.772,60463.0,60462.0,1.25220562]
[1724160851006,3.302,60463.0,60462.0,1.47159619]
[1724160851711,3.302,60463.0,60462.0,1.53772619]
[1724160851917,0.00024816,60465.0,60464.0,0.198384]
[1724160852122,3.77,60479.0,60478.0,0.066113]
[1724160852309,3.77,60479.0,60478.0,0.71449936]
[1724160852615,3.77,60479.0,60478.0,1.21053524]
[1724160852806,3.77,60479.0,60478.0,1.67343709]
[1724160853011,3.77,60479.0,60478.0,1.82664954]
[1724160853510,3.77,60479.0,60478.0,1.67343709]
[1724160854309,3.77,60479.0,60478.0,1.77698525]
[1724160854503,3.771,60479.0,60478.0,1.77898525]
[1724160854913,3.771,60479.0,60478.0,1.65306963]
[1724160855113,3.771,60479.0,60478.0,1.83652897]
[1724160855316,3.771,60479.0,60478.0,1.73798081]
[1724160855714,3.771,60479.0,60478.0,1.67186781]
[1724160856214,3.771,60479.0,60478.0,1.75393598]
[1724160856417,3.771,60479.0,60478.0,1.5459918]
[1724160857814,0.3608,60498.0,60479.0,0.496]
[1724160858017,0.3608,60498.0,60489.0,0.3608]
[1724160858214,3.77,60497.0,60489.0,0.5008]
[1724160858413,3.77,60497.0,60493.0,0.066096]
[1724160858612,3.77,60497.0,60489.0,0.36204]
[1724160858824,3.77,60497.0,60494.0,0.066095]
[1724160860421,3.77,60497.0,60495.0,0.066094]
[1724160862113,3.77,60497.0,60495.0,0.067094]
[1724160862114,3.781,60497.0,60495.0,0.067094]
[1724160862823,3.785,60497.0,60495.0,0.068094]
[1724160863227,3.775,60497.0,60495.0,0.075094]
[1724160863421,3.771,60497.0,60495.0,0.080094]
[1724160863720,0.132186,60496.0,60495.0,0.014]
[1724160863921,0.132204,60488.0,60487.0,0.00024794]
[1724160864116,4.263004,60488.0,60487.0,0.00024794]
[1724160864323,4.263004,60488.0,60478.0,0.866]
[1724160864324,0.066105,60485.0,60478.0,0.866]
[1724160864523,0.3608,60480.0,60472.0,0.00821829]
[1724160864717,0.3608,60480.0,60475.0,0.066116]
[1724160864718,0.426911,60480.0,60475.0,0.066116]
[1724160864917,0.0953,60484.0,60479.0,0.066111]
[1724160864918,0.426908,60483.0,60479.0,0.066111]
[1724160865111,0.426908,60483.0,60472.0,0.008115]
[1724160865112,0.3608,60483.0,60472.0,0.008115]
[1724160865316,0.3608,60483.0,60470.0,0.3261]
[1724160865317,0.3608,60483.0,60471.0,0.00024794]
[1724160865523,0.066112,60480.0,60473.0,0.066118]
[1724160865718,0.001,60480.0,60473.0,0.066118]
[1724160865914,0.066116,60476.0,60472.0,0.014]
[1724160866325,0.066116,60476.0,60471.0,0.00024794]
[1724160866626,0.066116,60476.0,60473.0,0.009]
[1724160866835,0.067111,60480.0,60473.0,0.075118]
[1724160867012,0.001,60480.0,60473.0,0.075118]
[1724160867414,0.001,60476.0,60473.0,0.066118]
[1724160868225,0.002,60476.0,60474.0,0.066117]
[1724160868420,0.002,60476.0,60475.0,0.066116]
[1724160869119,0.001,60476.0,60475.0,0.066116]
[1724160869325,0.002,60476.0,60475.0,0.066116]
[1724160869624,0.85368,60476.0,60471.0,0.00024794]
[1724160869920,0.42692,60472.0,60471.0,0.00024794]
[1724160870316,4.19692,60472.0,60471.0,0.00024794]
[1724160870825,4.62692,60472.0,60460.0,0.066133]
[1724160871125,0.066125,60467.0,60460.0,0.066133]
[1724160871323,0.0494,60466.0,60460.0,0.066133]
[1724160871628,0.0494,60466.0,60460.0,0.07862031]
[1724160871835,0.0494,60466.0,60461.0,0.066131]
[1724160872018,0.0494,60466.0,60457.0,0.00024794]
[1724160872632,0.0504,60466.0,60460.0,0.008]
[1724160872814,0.0504,60466.0,60465.0,0.066127]
[1724160873022,0.001,60466.0,60465.0,0.066127]
[1724160873219,0.00024794,60469.0,60467.0,0.066124]
[1724160874223,0.00024794,60469.0,60468.0,0.066124]
[1724160874626,0.00024794,60469.0,60468.0,0.24444853]
[1724160875725,3.77084,60472.0,60468.0,1.49716853]
[1724160875926,0.066105,60485.0,60478.0,0.066113]
[1724160876427,0.0491,60486.0,60471.0,0.066121]
[1724160876428,0.066112,60479.0,60471.0,0.066121]
[1724160876630,3.77,60483.0,60470.0,0.392222]
[1724160876631,3.77096001,60483.0,60470.0,0.392222]
[1724160876933,3.77,60483.0,60470.0,0.392222]
[1724160877232,0.3608,60472.0,60470.0,0.32634794]
[1724160877420,0.0491,60471.0,60470.0,0.32634794]
[1724160877624,0.0491,60471.0,60470.0,0.00024794]
[1724160878229,0.0491,60471.0,60470.0,0.06636994]
[1724160878422,0.3608,60477.0,60470.0,0.17868944]
[1724160879025,3.77,60476.0,60475.0,0.066116]
[1724160879731,3.77,60476.0,60475.0,0.206116]
[1724160880827,3.772,60476.0,60475.0,0.228116]
[1724160881034,3.772,60476.0,60475.0,0.588916]
[1724160882230,0.0459,60485.0,60475.0,0.588916]
[1724160882231,0.04895693,60493.0,60475.0,1.19357887]
[1724160882435,0.3608,60498.0,60475.0,1.19357887]
[1724160882436,0.473691,60498.0,60487.0,0.3608]
[1724160882636,3.836093,60497.0,60487.0,0.5008]
[1724160882836,0.4076,60498.0,60487.0,0.5008]
[1724160883141,0.066092,60497.0,60490.0,0.066099]
[1724160883335,0.3608,60492.0,60490.0,0.066099]
[1724160884333,0.3608,60492.0,60487.0,0.37004794]
[1724160885327,0.0661,60491.0,60487.0,0.37004794]
[1724160885537,0.0661,60491.0,60487.0,0.38228953]
[1724160886135,0.0661,60491.0,60487.0,0.37828953]
[1724160886438,0.0661,60491.0,60490.0,0.003]
[1724160886639,0.49596,60491.0,60481.0,0.3261]
[1724160886939,0.3608,60492.0,60481.0,0.392209]
[1724160887143,0.001,60491.0,60487.0,0.009]
[1724160887333,0.066102,60488.0,60487.0,0.009]
[1724160887841,0.066104,60487.0,60481.0,0.08841383]
[1724160888039,0.0464,60487.0,60481.0,0.01024794]
[1724160888240,0.066108,60483.0,60481.0,0.01024794]
[1724160888739,0.0488,60482.0,60481.0,0.01024794]
[1724160889841,0.0488,60482.0,60481.0,0.00024794]
[1724160890040,0.0488,60482.0,60481.0,0.06635794]
[1724160890440,0.0488,60482.0,60481.0,0.00024794]
[1724160891546,0.0498,60482.0,60481.0,0.00724794]
[1724160892038,0.0488,60482.0,60481.0,0.00024794]
[1724160892248,0.0498,60482.0,60481.0,0.00624794]
[1724160892647,3.8208,60482.0,60481.0,0.01324794]
[1724160893342,3.885909,60482.0,60481.0,0.00624794]
[1724160893647,3.885909,60482.0,60481.0,0.01124794]
[1724160893848,0.001,60482.0,60481.0,0.07735794]
[1724160894346,0.001,60482.0,60481.0,0.07235794]
[1724160894347,0.002,60482.0,60481.0,0.07235794]
[1724160895142,0.002,60482.0,60481.0,0.06635794]
[1724160895143,0.001,60482.0,60481.0,0.06635794]
[1724160895341,0.002,60482.0,60481.0,0.07235794]
[1724160896157,0.001,60482.0,60481.0,0.06735794]
[1724160896649,0.067109,60482.0,60481.0,0.00124794]
[1724160900546,0.001,60482.0,60481.0,0.06735794]
[1724160900752,0.067109,60482.0,60481.0,0.00124794]
[1724160900957,1.029218,60482.0,60481.0,0.00124794]
[1724160901248,1.09461688,60482.0,60481.0,0.00124794]
[1724160901550,3.90250583,60482.0,60481.0,0.00124794]
[1724160901752,3.837109,60482.0,60481.0,0.00124794]
[1724160902458,3.90250583,60482.0,60481.0,0.00124794]
[1724160902639,3.837109,60482.0,60481.0,0.00124794]
[1724160902843,3.83937449,60482.0,60481.0,0.00124794]
[1724160903445,3.90477132,60482.0,60481.0,0.00124794]
[1724160903847,3.83937449,60482.0,60481.0,0.00124794]
[1724160904363,3.90477132,60482.0,60481.0,0.00124794]
[1724160905048,3.90477132,60482.0,60481.0,0.06735794]
[1724160906254,0.066113,60478.0,60477.0,0.066114]
[1724160906451,0.47598353,60478.0,60477.0,0.066114]
[1724160906842,0.47824902,60478.0,60477.0,0.066114]
[1724160907848,0.066116,60476.0,60475.0,0.066116]
[1724160908048,0.066116,60476.0,60474.0,0.3261]
[1724160908049,0.04907053,60477.0,60474.0,0.3261]
[1724160908248,0.066116,60475.0,60474.0,0.3261]
[1724160908444,0.066117,60474.0,60473.0,0.01233214]
[1724160908651,0.04907053,60477.0,60472.0,0.066119]
[1724160908652,0.066118,60473.0,60472.0,0.066119]
[1724160909048,0.06838349,60473.0,60472.0,0.066119]
[1724160909243,0.00226549,60473.0,60472.0,0.09195461]
[1724160909459,0.00226549,60473.0,60472.0,0.14137074]
[1724160909646,0.00226549,60473.0,60472.0,0.29137074]
[1724160910049,0.00226549,60473.0,60472.0,0.321206]
[1724160910251,0.00226549,60473.0,60472.0,0.32120599]
[1724160910445,0.00226549,60473.0,60472.0,0.29537074]
[1724160910650,0.00226549,60473.0,60472.0,0.32120599]
[1724160911264,0.00226549,60473.0,60472.0,0.32120563]
[1724160911652,0.00226549,60473.0,60472.0,0.29537036]
[1724160911868,0.00326549,60473.0,60472.0,0.34290946]
[1724160912056,0.3608,60484.0,60472.0,1.47255046]
[1724160912255,0.3608,60484.0,60478.0,0.04945269]
[1724160912453,0.3608,60484.0,60480.0,0.04945269]
[1724160912757,0.3608,60484.0,60483.0,0.066108]
[1724160913150,0.3608,60484.0,60483.0,0.09193946]
[1724160913357,0.3608,60484.0,60483.0,0.14139215]
[1724160913358,0.3618,60484.0,60483.0,0.14139215]
[1724160913860,0.00024794,60488.0,60483.0,0.56347036]
[1724160914059,0.00024794,60488.0,60486.0,0.3608]
[1724160914254,0.00024794,60488.0,60487.0,0.11776536]
[1724160914452,0.00024794,60488.0,60487.0,0.18369872]
[1724160914653,0.00024794,60488.0,60487.0,0.09193446]
[1724160914856,0.00024794,60488.0,60487.0,0.1413866]
[1724160915162,0.00024794,60488.0,60487.0,0.09193154]
[1724160915747,0.00024794,60488.0,60487.0,0.066103]
[1724160915958,0.00624794,60488.0,60487.0,0.067103]
[1724160917056,0.01324794,60488.0,60487.0,0.068103]
[1724160917250,0.01324794,60488.0,60487.0,0.002]
[1724160917446,0.01324794,60488.0,60481.0,0.04945213]
[1724160917447,1.33540477,60488.0,60481.0,0.04945213]
[1724160917647,1.33540477,60488.0,60477.0,0.06593336]
[1724160917648,0.06611,60481.0,60477.0,0.01204438]
[1724160917851,3.77,60479.0,60474.0,0.04945213]
[1724160918048,3.77,60479.0,60475.0,0.02583381]
[1724160918260,3.77,60479.0,60474.0,0.04945213]
[1724160918566,3.77,60479.0,60475.0,0.02583412]
[1724160918755,3.77,60479.0,60478.0,0.066113]
[1724160919061,3.77,60479.0,60474.0,0.12803022]
[1724160919261,0.3608,60476.0,60474.0,0.01246109]
[1724160919460,0.3608,60476.0,60472.0,0.392219]
[1724160919759,0.3608,60476.0,60474.0,0.007]
[1724160920761,0.3618,60476.0,60474.0,0.007]
[1724160921660,0.3628,60476.0,60474.0,0.007]
[1724160922560,0.3618,60476.0,60474.0,0.007]
[1724160922865,0.3628,60476.0,60474.0,0.013]
[1724160923662,0.3628,60476.0,60474.0,0.012]
[1724160923852,0.066116,60475.0,60474.0,0.012]
[1724160925261,0.11520239,60475.0,60474.0,0.012]
[1724160925461,0.06612,60472.0,60471.0,0.00024794]
[1724160925658,0.84794,60472.0,60471.0,0.00024794]
[1724160925858,1.24794,60472.0,60471.0,0.00024794]
[1724160926259,1.18182,60472.0,60462.0,0.04945839]
[1724160926457,0.06613,60462.0,60460.0,0.04945839]
[1724160926669,3.77,60461.0,60459.0,0.04945839]
[1724160926960,3.77,60461.0,60460.0,0.051682]
[1724160927156,3.836132,60461.0,60460.0,0.02584096]
[1724160927359,3.836132,60461.0,60458.0,0.13109852]
[1724160927763,3.836132,60461.0,60460.0,0.006]
[1724160928367,3.836132,60461.0,60448.0,0.40813341]
[1724160928368,0.2857,60457.0,60448.0,0.3261]
[1724160928560,0.3608,60449.0,60444.0,0.04945839]
[1724160928865,0.3608,60449.0,60443.0,0.066151]
[1724160929061,0.0474,60448.0,60443.0,0.066151]
[1724160929373,0.3608,60444.0,60443.0,0.066151]
[1724160930064,4.1308,60444.0,60441.0,0.01499042]
[1724160930267,4.1308,60444.0,60443.0,0.008]
[1724160930268,4.19695,60444.0,60443.0,0.008]
[1724160931366,4.19795,60444.0,60443.0,0.008]
[1724160931557,0.066154,60441.0,60437.0,0.01527071]
[1724160931759,0.3608,60438.0,60431.0,0.00017495]
[1724160932257,0.066163,60433.0,60431.0,0.00017495]
[1724160932466,0.066163,60432.0,60431.0,0.00017495]
[1724160932666,0.114163,60432.0,60431.0,0.00017495]
[1724160933064,3.884163,60432.0,60431.0,0.00017495]
[1724160934265,3.885163,60432.0,60431.0,0.00017495]
[1724160934867,3.886163,60432.0,60431.0,0.00617495]
[1724160936158,3.82,60432.0,60431.0,0.00017495]
[1724160936566,3.82,60432.0,60431.0,0.06633895]
[1724160936567,3.772,60432.0,60431.0,0.06633895]
[1724160939669,0.00024816,60438.0,60437.0,0.066158]
[1724160940168,3.77024816,60438.0,60437.0,0.066158]
[1724160940869,4.05594816,60438.0,60431.0,0.00017495]
[1724160941067,0.3608,60434.0,60431.0,0.00017495]
[1724160941270,0.066162,60433.0,60431.0,0.00017495]
[1724160941469,0.132325,60433.0,60431.0,0.00017495]
[1724160941666,0.066162,60433.0,60431.0,0.00017495]
[1724160942167,0.066162,60433.0,60431.0,0.00717495]
[1724160942369,0.066163,60432.0,60431.0,0.00717495]
[1724160942764,0.066163,60432.0,60431.0,0.00017495]
[1724160942965,0.00124816,60438.0,60431.0,0.00717495]
[1724160943172,0.00124816,60438.0,60437.0,0.066158]
[1724160943568,3.77124816,60438.0,60437.0,0.066158]
[1724160944275,3.77024816,60438.0,60437.0,0.066158]
[1724160945376,3.77124816,60438.0,60437.0,0.066158]
[1724160946077,3.77224816,60438.0,60437.0,0.071158]
[1724160946782,0.00224816,60438.0,60437.0,0.071158]
[1724160947072,0.00224816,60438.0,60437.0,0.08627461]
[1724160947273,3.77224816,60438.0,60437.0,0.08627461]
[1724160947975,0.36304816,60438.0,60437.0,0.08627461]
[1724160948572,4.13304816,60438.0,60437.0,0.08627461]
[1724160950080,0.36304816,60438.0,60437.0,0.08627461]
[1724160953778,0.42920516,60438.0,60437.0,0.02011661]
[1724160954283,0.71490516,60438.0,60437.0,0.02011661]
[1724160954473,0.71490516,60438.0,60431.0,0.06633995]
[1724160954676,0.3608,60432.0,60431.0,0.08160693]
[1724160955178,4.1308,60432.0,60431.0,0.08160693]
[1724160955387,0.3608,60432.0,60431.0,0.08160693]
[1724160955981,4.1318,60432.0,60431.0,0.08160693]
[1724160957781,4.1338,60432.0,60431.0,0.08160693]
[1724160959581,4.1338,60432.0,60431.0,0.14754029]
[1724160961487,4.1338,60432.0,60428.0,0.066168]
[1724160961488,4.4195,60432.0,60428.0,0.066168]
[1724160961690,0.048,60431.0,60428.0,0.13223751]
[1724160961992,0.048,60431.0,60428.0,0.066168]
[1724160962385,0.06629817,60430.0,60428.0,0.066168]
[1724160962592,0.06629817,60430.0,60428.0,0.13223751]
[1724160962986,0.06629817,60430.0,60428.0,0.14728419]
[1724160963683,0.06629817,60430.0,60428.0,0.14828419]
[1724160964497,0.06629817,60430.0,60429.0,0.06606951]
[1724160964698,0.06629817,60430.0,60428.0,0.08221468]
[1724160964699,0.06629817,60430.0,60428.0,0.14828419]
[1724160964904,0.06629817,60430.0,60428.0,0.08221468]
[1724160965505,0.06629817,60430.0,60428.0,0.01604668]
[1724160965804,0.066174,60423.0,60420.0,0.06607129]
[1724160966105,0.066182,60416.0,60410.0,0.0660787]
[1724160966411,4.1308,60412.0,60410.0,0.0660787]
[1724160966709,0.00019975,60411.0,60407.0,0.0660787]
[1724160967209,0.00019975,60411.0,60409.0,0.06619]
[1724160967406,0.00019975,60411.0,60407.0,0.0660787]
[1724160967704,0.00019975,60411.0,60405.0,0.14724491]
[1724160967902,0.3608,60406.0,60405.0,0.1322727]
[1724160968095,0.3608,60406.0,60405.0,0.066194]
[1724160968302,0.3608,60406.0,60405.0,0.13216702]
[1724160968497,0.3608,60406.0,60405.0,0.066194]
[1724160969806,0.3608,60406.0,60405.0,0.08106726]
[1724160970109,0.3618,60406.0,60405.0,0.08106726]
[1724160970508,0.002,60406.0,60405.0,0.97870726]
[1724160970810,0.00024816,60419.0,60418.0,0.06618]
[1724160971007,3.77024816,60419.0,60418.0,0.42698]
[1724160971198,3.77024816,60419.0,60407.0,0.16474016]
[1724160971199,3.77024816,60419.0,60414.0,0.13206173]
[1724160971400,0.3608,60416.0,60414.0,0.066184]
[1724160971596,0.0451,60418.0,60409.0,0.06587773]
[1724160971802,3.77116816,60419.0,60411.0,0.42667773]
[1724160972009,3.77024816,60419.0,60418.0,0.001]
[1724160972311,3.83742716,60419.0,60418.0,0.001]
[1724160973212,0.066181,60418.0,60407.0,0.066191]
[1724160973411,0.3608,60415.0,60407.0,0.066191]
[1724160973611,0.3608,60410.0,60407.0,0.066191]
[1724160973818,0.0487,60409.0,60408.0,0.066191]
[1724160974503,3.8187,60409.0,60408.0,0.066191]
[1724160975098,3.8197,60409.0,60408.0,0.068191]
[1724160975608,3.8197,60409.0,60408.0,0.01707909]
[1724160976004,3.8197,60409.0,60403.0,0.0001762]
[1724160976005,3.8197,60409.0,60405.0,0.066193]
[1724160976915,3.8207,60409.0,60406.0,0.066193]
[1724160977110,3.8197,60409.0,60406.0,0.066193]
[1724160977308,3.8207,60409.0,60406.0,0.066193]
[1724160977503,3.8696,60409.0,60406.0,0.066193]
[1724160977812,3.8696,60409.0,60403.0,0.0001762]
[1724160978021,3.8696,60409.0,60393.0,0.06587773]
[1724160978022,0.2857,60404.0,60393.0,0.06587773]
[1724160978211,0.7216,60394.0,60380.0,0.427021]
[1724160978401,0.3608,60385.0,60380.0,0.427021]
[1724160978718,0.3319,60393.0,60381.0,0.06622]
[1724160978719,0.0951,60393.0,60381.0,0.06622]
[1724160978904,0.00024837,60389.0,60384.0,0.066216]
[1724160979100,0.0001635,60388.0,60380.0,0.37584502]
[1724160979299,0.0001635,60388.0,60387.0,0.066214]
[1724160979503,0.0001635,60388.0,60386.0,0.3608]
[1724160979908,3.77,60387.0,60386.0,0.3608]
[1724160980111,3.77,60387.0,60380.0,0.3842724]
[1724160980714,3.77,60387.0,60386.0,0.3608]
[1724160981015,3.77,60387.0,60386.0,0.427015]
[1724160981207,3.771,60387.0,60386.0,0.427015]
[1724160981511,0.001,60393.0,60386.0,1.39003]
[1724160981713,0.42699,60409.0,60398.0,0.066202]
[1724160981714,0.066191,60408.0,60398.0,0.066202]
[1724160981920,0.066193,60406.0,60398.0,0.066202]
[1724160982103,0.066193,60406.0,60393.0,0.2857]
[1724160982104,3.77,60404.0,60393.0,0.332]
[1724160982416,3.77,60404.0,60399.0,0.0662]
[1724160982609,3.77,60404.0,60395.0,0.00024837]
[1724160982911,0.3608,60402.0,60395.0,0.00024837]
[1724160983112,3.77084,60404.0,60395.0,0.00024837]
[1724160983314,3.77,60404.0,60399.0,0.2857]
[1724160983521,3.77,60404.0,60401.0,0.066198]
[1724160983705,3.771,60404.0,60401.0,0.066198]
[1724160984714,3.771,60404.0,60398.0,0.0462]
[1724160984715,3.771,60404.0,60403.0,0.066196]
[1724160984922,1e-08,60408.0,60407.0,0.066192]
[1724160985111,1e-08,60408.0,60407.0,0.426992]
[1724160985310,1e-08,60408.0,60407.0,1.323632]
[1724160985311,3.77000001,60408.0,60407.0,1.323632]
[1724160985618,3.77000001,60408.0,60407.0,1.483632]
[1724160985819,3.77000001,60408.0,60407.0,1.083632]
[1724160986115,3.77000001,60408.0,60407.0,1.323632]
[1724160986316,1e-08,60408.0,60407.0,1.323632]
[1724160986515,1e-08,60408.0,60407.0,2.07030986]
[1724160986715,1e-08,60408.0,60407.0,1.34246523]
[1724160986908,1e-08,60408.0,60407.0,0.94246523]
[1724160987107,0.00100001,60408.0,60407.0,0.94246523]
[1724160987312,0.00100001,60408.0,60407.0,0.44582523]
[1724160987513,3.77,60422.0,60418.0,0.066179]
[1724160988219,3.77,60422.0,60414.0,0.3608]
[1724160988910,3.77,60422.0,60414.0,0.3795822]
[1724160989419,0.06618,60419.0,60414.0,0.3795822]
[1724160989719,0.06618,60418.0,60414.0,0.3795822]
[1724160989913,0.3608,60417.0,60414.0,0.0187822]
[1724160990117,0.3608,60417.0,60412.0,0.00024837]
[1724160990315,3.77,60422.0,60417.0,0.06618]
[1724160990522,3.77,60422.0,60412.0,0.37952815]
[1724160990523,3.771,60422.0,60412.0,0.37952815]
[1724160990716,3.771,60422.0,60421.0,0.066176]
[1724160991118,3.77,60422.0,60421.0,0.066176]
[1724160993420,3.77,60422.0,60413.0,0.4038]
[1724160993421,3.774,60422.0,60417.0,0.066181]
[1724160994327,0.3608,60418.0,60413.0,0.01931773]
[1724160994520,0.066182,60416.0,60412.0,0.00024837]
[1724160995220,0.3608,60418.0,60412.0,0.00024837]
[1724160995417,0.066181,60417.0,60412.0,0.00024837]
[1724160995616,3.77,60415.0,60412.0,0.00024837]
[1724160996420,3.836184,60415.0,60412.0,0.00024837]
[1724160996926,0.066185,60413.0,60412.0,0.00024837]
[1724160997632,0.426985,60413.0,60412.0,0.00024837]
[1724160998028,0.066193,60407.0,60399.0,0.0662]
[1724160998526,3.77,60405.0,60403.0,0.066196]
[1724160998926,3.77,60405.0,60404.0,0.066195]
[1724161001034,3.771,60405.0,60404.0,0.066195]
[1724161001433,0.002,60405.0,60404.0,0.066195]
[1724161003234,0.001,60405.0,60404.0,0.066195]
[1724161003429,0.002,60405.0,60404.0,0.066195]
[1724161003734,0.001,60405.0,60404.0,0.066195]
[1724161003929,0.002,60405.0,60404.0,0.066195]
[1724161004835,0.001,60405.0,60404.0,0.066195]
[1724161005037,0.002,60405.0,60404.0,0.066195]
[1724161005225,0.002,60405.0,60400.0,0.01859185]
[1724161005226,0.066198,60401.0,60400.0,0.01859185]
[1724161005530,0.0662,60399.0,60398.0,1e-08]
[1724161005730,3.8362,60399.0,60398.0,1e-08]
[1724161007330,3.8372,60399.0,60398.0,1e-08]
[1724161007736,3.8382,60399.0,60398.0,1e-08]
[1724161008534,4.33492,60399.0,60398.0,1e-08]
[1724161008836,4.73492,60399.0,60398.0,1e-08]
[1724161011327,4.33492,60399.0,60398.0,1e-08]
[1724161011533,3.8382,60399.0,60398.0,1e-08]
[1724161011736,3.8382,60399.0,60398.0,0.06620101]
[1724161011930,3.772,60399.0,60398.0,0.06620101]
[1724161013657,0.002,60399.0,60398.0,0.06620101]
[1724161015251,0.0499,60412.0,60398.0,0.06620101]
[1724161015252,0.09875327,60416.0,60409.0,0.066189]
[1724161015552,0.00024837,60410.0,60409.0,0.066189]
[1724161015752,3.77024837,60410.0,60409.0,0.066189]
[1724161016358,0.00024837,60410.0,60409.0,0.066189]
[1724161016555,1e-08,60410.0,60409.0,1.323589]
[1724161016862,1e-08,60410.0,60409.0,1.370089]
[1724161017159,1e-08,60410.0,60409.0,1.41488143]
[1724161017852,1e-08,60410.0,60409.0,0.98902145]
[1724161018052,1e-08,60410.0,60409.0,1.38902145]
[1724161018260,0.00100001,60410.0,60409.0,1.38902145]
[1724161018443,0.00100001,60410.0,60409.0,1.01488161]
[1724161018648,0.00100001,60410.0,60409.0,1.0148816]
[1724161019253,3.77,60421.0,60409.0,1.34969231]
[1724161019459,3.77,60421.0,60410.0,0.02585986]
[1724161019659,3.77,60421.0,60419.0,0.066178]
[1724161020652,3.771,60421.0,60419.0,0.066178]
[1724161020863,0.001,60421.0,60420.0,0.066177]
[1724161021250,0.3608,60422.0,60421.0,0.066176]
[1724161022561,0.3608,60422.0,60416.0,0.06618]
[1724161022752,3.771,60421.0,60416.0,0.06618]
[1724161022953,3.771,60421.0,60414.0,0.00024837]
[1724161023155,0.066179,60419.0,60414.0,0.00024837]
[1724161023357,0.066183,60415.0,60414.0,0.00024837]
[1724161023660,0.066183,60415.0,60402.0,0.3608]
[1724161023661,0.7185,60416.0,60402.0,0.3608]
[1724161023849,0.066193,60406.0,60401.0,0.066197]
[1724161024053,0.3608,60407.0,60397.0,0.066202]
[1724161024255,0.3608,60407.0,60391.0,0.3608]
[1724161024256,0.3608,60400.0,60391.0,0.3608]
[1724161025467,0.3608,60400.0,60391.0,0.37983658]
[1724161025656,0.3608,60400.0,60392.0,0.066208]
[1724161025858,0.3608,60400.0,60394.0,0.066205]
[1724161026059,0.3608,60395.0,60391.0,0.01903658]
[1724161026357,0.3608,60395.0,60387.0,0.0486]
[1724161026555,0.427004,60395.0,60391.0,0.002]
[1724161027459,0.3618,60395.0,60389.0,0.066211]
[1724161027764,0.3628,60395.0,60391.0,0.002]
[1724161028361,0.3628,60395.0,60394.0,0.427005]
[1724161028362,0.002,60395.0,60394.0,0.427005]
[1724161028658,0.3628,60395.0,60391.0,0.002]
[1724161028863,3.77,60394.0,60391.0,0.02105175]
[1724161029063,3.77,60394.0,60391.0,0.002]
[1724161030252,3.771,60394.0,60391.0,0.068209]
[1724161030652,3.771,60394.0,60392.0,0.066208]
[1724161030861,3.771,60394.0,60391.0,0.002]
[1724161031061,3.771,60394.0,60393.0,0.066207]
[1724161031561,3.772,60394.0,60391.0,0.002]
[1724161032275,3.838206,60394.0,60391.0,0.002]
[1724161032651,3.838206,60394.0,60392.0,0.002]
[1724161032858,3.838206,60394.0,60377.0,0.00824355]
[1724161032859,0.85446,60393.0,60375.0,0.3608]
[1724161033159,0.3608,60384.0,60376.0,0.066225]
[1724161033360,0.3608,60379.0,60372.0,0.066229]
[1724161033572,0.3608,60379.0,60371.0,0.0492]
[1724161034255,0.3608,60379.0,60367.0,0.018865]